bitfinex-derivatives/quotes_SOLF0:USTF0_20250903
["timestamp","ask_amount","ask_price","bid_price","bid_amount"]
[1756900942218,7.38,211.09,210.97,7.36]
[1756900942612,7.38,211.06,210.97,7.36]
[1756900945322,7.38,211.03,210.92,7.36]
[1756900945622,10.07486663,211.03,210.92,7.36]
[1756900946317,7.38,211.03,210.96,7.36]
[1756900947920,7.38,211.03,210.9,6.64953696]
[1756900947921,10.07486663,211.03,210.9,6.64953696]
[1756900948120,27.47927044,211.07,210.86,66.3759]
[1756900948121,10.07486663,211.0,210.91,7.36]
[1756900949619,5.31927044,211.06,210.94,7.36]
[1756900949824,7.38,211.05,210.94,7.36]
[1756900950320,7.38,211.05,210.94,11.6252]
[1756900950624,5.31927044,211.08,210.98,2.69486663]
[1756900950828,7.38,211.11,210.99,7.36]
[1756900951123,10.07486663,211.11,210.99,7.36]
[1756900951314,10.07486663,211.11,210.99,11.6243]
[1756900951733,15.39413707,211.11,210.99,11.6243]
[1756900952719,2.69486663,211.08,210.99,7.36]
[1756900952919,7.38,211.07,210.99,7.36]
[1756900953620,2.69486663,211.05,210.99,7.36]
[1756900955922,2.69486663,211.05,210.99,11.6243]
[1756900957027,2.69486663,211.05,210.99,7.36]
[1756900957528,1.72532291,211.03,210.97,4.2648]
[1756900958223,1.72532291,211.03,210.98,7.36]
[1756900958425,1.72532291,211.03,210.96,7.36]
[1756900959729,1.72532291,211.03,210.96,11.6249]
[1756900959924,1.72532291,211.03,210.95,7.36]
[1756900960129,1.72532291,211.03,210.95,9.08532291]
[1756900960329,1.72532291,211.03,210.95,13.35052291]
[1756900960629,1.72532291,211.01,210.95,7.36]
[1756900960929,1.72532291,210.99,210.93,7.36]
[1756900961632,1.72532291,211.05,210.97,7.48]
[1756900961933,1.72532291,211.06,210.99,7.48]
[1756900962437,1.72532291,211.06,210.99,11.7443]
[1756900962637,1.72532291,211.06,211.0,7.48]
[1756900963037,1.72532291,211.06,211.0,11.7441]
[1756900963338,1.72532291,211.06,211.0,7.48]
[1756900963537,1.72532291,211.04,210.98,7.48]
[1756900963734,1.72532291,211.06,211.0,4.2641]
[1756900964335,1.72532291,211.06,211.0,11.7441]
[1756900965333,1.72532291,211.06,211.01,4.2639]
[1756900965543,1.72532291,211.09,211.02,7.48]
[1756900965837,1.72532291,211.09,211.02,11.7437]
[1756900966035,1.72532291,211.07,211.02,11.7437]
[1756900966343,1.72532291,211.07,211.03,7.48]
[1756900966638,1.72532291,211.07,211.02,4.2637]
[1756900966833,1.72532291,211.07,211.03,7.48]
[1756900967230,1.72532291,211.07,211.02,4.2637]
[1756900967427,7.41,211.12,211.03,4.2634]
[1756900967635,7.41,211.12,211.01,1.72532291]
[1756900967837,7.41,211.12,211.04,7.48]
[1756900967838,1.72532291,211.12,211.04,7.48]
[1756900968140,5.31927044,211.15,211.04,7.48]
[1756900968343,1.72532291,211.12,211.04,7.48]
[1756900968842,1.72532291,211.12,211.06,4.2628]
[1756900969044,1.72532291,211.12,211.04,7.48]
[1756900969940,1.72532291,211.12,211.05,4.263]
[1756900970242,1.72532291,211.12,211.06,7.48]
[1756900974043,1.72532291,211.12,211.06,11.7429]
[1756900974444,12.72927044,211.16,211.06,7.48]
[1756900974643,1.72532291,211.12,211.06,7.48]
[1756900976842,1.72532291,211.12,211.06,11.7429]
[1756900978534,12.72927044,211.16,211.06,11.7429]
[1756900978735,1.72532291,211.12,211.07,4.2627]
[1756900978935,1.72532291,211.12,211.08,7.48]
[1756900979336,1.72532291,211.12,211.07,4.2627]
[1756900979540,1.72532291,211.12,211.08,7.48]
[1756900979738,1.72532291,211.12,211.07,4.2627]
[1756900979942,1.72532291,211.12,211.08,7.48]
[1756900980246,1.72532291,211.12,211.05,7.48]
[1756900980446,7.41,211.09,211.02,1.72532291]
[1756900980741,5.31927044,211.15,211.05,7.48]
[1756900980944,7.93029319,211.18,211.07,7.48]
[1756900980945,1.72532291,211.14,211.07,7.48]
[1756900981141,5.31927044,211.18,211.11,4.2619]
[1756900981440,7.41,211.15,211.08,9.20532291]
[1756900981640,1.72532291,211.14,211.08,7.48]
[1756900983541,5.31927044,211.2,211.08,9.20532291]
[1756900983844,1.72532291,211.18,211.11,7.48]
[1756900985350,1.72532291,211.18,211.11,11.7419]
[1756900985646,1.72532291,211.18,211.11,7.48]
[1756900987849,1.72532291,211.16,211.1,7.48]
[1756900989148,1.72532291,211.16,211.11,4.2619]
[1756900989349,1.72532291,211.16,211.1,7.48]
[1756900989550,1.72532291,211.18,211.1,7.48]
[1756900989748,1.72532291,211.18,211.12,4.2617]
[1756900989951,1.72532291,211.18,211.13,7.48]
[1756900990152,1.72532291,211.18,211.12,4.2617]
[1756900990652,1.72532291,211.18,211.13,7.48]
[1756900990956,1.72532291,211.18,211.12,11.7417]
[1756900991452,1.72532291,211.18,211.12,7.48]
[1756900993150,1.72532291,211.16,211.12,7.48]
[1756900993651,1.72532291,211.16,211.1,7.19]
[1756900994251,1.72532291,211.14,211.09,7.19]
[1756900994555,1.72532291,211.12,211.04,8.91532291]
[1756900994754,1.72532291,211.12,211.04,7.19]
[1756900994951,1.72532291,211.12,211.04,8.91532291]
[1756900996052,1.72532291,211.12,211.06,1.72532291]
[1756900996246,1.72532291,211.17,211.09,7.19]
[1756900996552,7.26,211.18,211.09,7.19]
[1756900996553,1.72532291,211.15,211.09,11.4523]
[1756900998059,1.72532291,211.15,211.09,7.19]
[1756900998249,5.31927044,211.19,211.09,8.91532291]
[1756900998557,7.26,211.22,211.14,7.19]
[1756900998753,5.31927044,211.23,211.09,66.3037]
[1756900998754,1.72532291,211.23,211.16,7.19]
[1756901000155,12.57927044,211.26,211.16,4.2608]
[1756901000458,1.72532291,211.24,211.17,7.19]
[1756901001861,7.26,211.21,211.17,7.19]
[1756901002061,1.72532291,211.21,211.15,7.19]
[1756901003057,1.72532291,211.21,211.15,11.4511]
[1756901003253,1.72532291,211.21,211.16,7.19]
[1756901003460,1.72532291,211.23,211.16,7.19]
[1756901003959,1.72532291,211.26,211.18,7.19]
[1756901004160,8.98532291,211.26,211.18,7.19]
[1756901004370,1.72532291,211.24,211.18,7.19]
[1756901012573,1.72532291,211.25,211.18,7.19]
[1756901012965,7.26,211.26,211.18,7.19]
[1756901013172,1.72532291,211.27,211.2,7.19]
[1756901013467,7.26,211.35,211.24,7.19]
[1756901013664,7.26,211.35,211.29,1.72532291]
[1756901013871,1.72532291,211.38,211.3,7.19]
[1756901014374,1.72532291,211.38,211.3,11.4482]
[1756901014768,1.72532291,211.38,211.31,7.19]
[1756901015973,1.72532291,211.36,211.29,7.19]
[1756901016576,7.26,211.39,211.29,7.19]
[1756901016774,1.72532291,211.35,211.29,7.19]
[1756901017674,7.26,211.37,211.29,7.19]
[1756901018276,2.68760725,211.35,211.29,7.19]
[1756901018472,2.68760725,211.44,211.12,85.81950076]
[1756901018473,2.68760725,211.32,211.21,7.19]
[1756901019978,2.68760725,211.32,211.21,11.4498]
[1756901020178,2.68760725,211.32,211.22,7.19]
[1756901020769,2.68760725,211.29,211.22,7.19]
[1756901020976,7.26,211.28,211.22,7.19]
[1756901021170,7.26,211.28,211.12,7.19]
[1756901021371,7.26,211.28,211.11,71.32]
[1756901021372,7.26,211.28,211.14,7.19]
[1756901021778,7.26,211.28,211.16,7.73]
[1756901022772,7.26,211.28,211.17,7.73]
[1756901023177,10.49760725,211.32,211.19,7.73]
[1756901023377,10.49760725,211.32,211.2,7.73]
[1756901023671,10.49760725,211.32,211.21,4.2598]
[1756901023872,7.81,211.32,211.2,7.73]
[1756901024080,7.81,211.32,211.21,7.73]
[1756901024683,7.81,211.32,211.23,4.2594]
[1756901024986,7.81,211.32,211.24,7.73]
[1756901025174,10.49760725,211.32,211.24,7.73]
[1756901029584,7.81,211.32,211.24,11.9892]
[1756901030082,7.81,211.32,211.24,7.73]
[1756901031179,10.49760725,211.32,211.24,7.73]
[1756901033474,7.81,211.32,211.24,7.73]
[1756901044582,7.81,211.29,211.13,7.73]
[1756901044891,7.81,211.29,211.17,7.73]
[1756901045979,7.81,211.29,211.19,7.73]
[1756901048990,10.49760725,211.29,211.2,7.73]
[1756901049790,7.81,211.29,211.2,7.73]
[1756901053491,7.34,211.27,211.16,7.65]
[1756901054590,7.34,211.31,211.19,7.65]
[1756901056098,7.34,211.29,211.19,7.65]
[1756901057197,5.31927044,211.32,211.21,7.65]
[1756901057493,7.34,211.33,211.22,7.65]
[1756901057896,7.34,211.33,211.22,11.9097]
[1756901058594,7.34,211.33,211.23,7.65]
[1756901059201,5.31927044,211.36,211.26,7.65]
[1756901059497,12.65927044,211.38,211.26,7.65]
[1756901060798,12.65927044,211.38,211.29,7.65]
[1756901066710,5.31927044,211.39,211.29,7.65]
[1756901066909,5.31927044,211.39,211.31,7.65]
[1756901067110,5.31927044,211.4,211.31,7.65]
[1756901070113,12.65927044,211.41,211.31,7.65]
[1756901074718,7.34,211.41,211.31,7.65]
[1756901076419,7.34,211.41,211.31,11.9078]
[1756901078020,7.34,211.41,211.31,7.65]
[1756901078720,7.34,211.41,211.26,7.65]
[1756901078721,7.34,211.38,211.26,7.65]
[1756901079116,10.02760725,211.38,211.26,7.65]
[1756901079423,1.71974506,211.37,211.3,1.71974506]
[1756901079625,7.34,211.38,211.31,7.65]
[1756901079823,9.05974506,211.38,211.31,7.65]
[1756901081123,9.05974506,211.36,211.28,1.71974506]
[1756901081421,1.71974506,211.36,211.29,7.65]
[1756901081924,9.54974506,211.36,211.29,7.65]
[1756901083526,9.54974506,211.36,211.29,9.36974506]
[1756901084520,9.54974506,211.36,211.29,13.62804506]
[1756901085429,9.54974506,211.36,211.29,9.36974506]
[1756901087527,1.71974506,211.36,211.29,9.36974506]
[1756901088927,9.54974506,211.37,211.29,13.62804506]
[1756901089125,9.54974506,211.37,211.29,9.36974506]
[1756901092628,7.83,211.37,211.31,9.57974506]
[1756901094639,9.54974506,211.37,211.28,7.86]
[1756901094841,9.54974506,211.37,211.3,7.86]
[1756901095933,7.83,211.37,211.3,7.86]
[1756901096139,1.71974506,211.38,211.31,9.57974506]
[1756901096338,9.54974506,211.38,211.31,9.57974506]
[1756901097338,7.83,211.38,211.31,9.57974506]
[1756901097539,1.71974506,211.4,211.27,7.86]
[1756901097738,7.83,211.39,211.31,9.57974506]
[1756901098130,7.83,211.39,211.31,13.83754506]
[1756901098444,1.71974506,211.38,211.31,9.57974506]
[1756901099336,7.83,211.39,211.31,9.57974506]
[1756901099639,9.54974506,211.39,211.31,9.57974506]
[1756901100229,1.71974506,211.37,211.31,9.57974506]
[1756901100433,9.54974506,211.37,211.31,7.86]
[1756901100633,9.54974506,211.37,211.31,9.57974506]
[1756901100932,7.83,211.37,211.31,9.57974506]
[1756901101540,7.0390155,211.39,211.31,9.57974506]
[1756901103039,1.71974506,211.39,211.31,9.57974506]
[1756901103438,7.83,211.38,211.31,9.57974506]
[1756901104346,7.83,211.38,211.32,7.86]
[1756901105044,13.14927044,211.38,211.32,7.86]
[1756901106446,5.31927044,211.39,211.32,9.57974506]
[1756901106746,5.31927044,211.41,211.35,7.86]
[1756901109142,7.83,211.4,211.35,7.86]
[1756901109642,14.8690155,211.41,211.35,7.86]
[1756901111345,5.31927044,211.4,211.35,7.86]
[1756901111646,7.38,211.39,211.35,7.86]
[1756901111847,12.69927044,211.4,211.33,7.37]
[1756901112050,1.71974506,211.39,211.33,7.37]
[1756901112547,12.69927044,211.4,211.33,7.37]
[1756901112744,14.4190155,211.4,211.33,7.37]
[1756901113642,1.71974506,211.38,211.33,7.37]
[1756901113841,7.38,211.37,211.33,7.37]
[1756901114550,5.31927044,211.39,211.29,7.37]
[1756901114743,12.69927044,211.4,211.33,1.71974506]
[1756901114940,7.38,211.4,211.33,9.08974506]
[1756901115242,12.69927044,211.4,211.33,9.08974506]
[1756901115842,12.69927044,211.4,211.33,7.37]
[1756901118954,5.31927044,211.39,211.33,7.37]
[1756901119848,28.45,211.33,211.06,7.01524582]
[1756901120050,28.45,211.33,211.05,1.71974506]
[1756901120051,1.71974506,211.14,211.05,1.71974506]
[1756901120250,4.28941167,211.13,211.05,1.71974506]
[1756901120450,4.28941167,211.12,211.05,1.71974506]
[1756901120655,4.28941167,211.11,211.05,1.71974506]
[1756901120857,4.28941167,211.1,211.05,1.71974506]
[1756901121058,1.71974506,211.12,211.06,7.37]
[1756901121659,3.51618305,211.11,211.03,1.71974506]
[1756901121848,1.71974506,211.12,211.04,7.37]
[1756901121849,3.51618305,211.1,211.04,7.37]
[1756901122052,3.5161432,211.09,211.04,7.37]
[1756901122255,3.5161432,211.08,211.03,1.71974506]
[1756901122455,1.71974506,211.1,211.04,7.37]
[1756901122654,7.77496992,211.09,211.03,9.08974506]
[1756901122860,7.77496992,211.08,211.03,1.71974506]
[1756901123055,4.06828696,211.07,211.02,7.37]
[1756901123256,1.71974506,211.1,211.02,7.37]
[1756901123550,7.38,211.13,211.02,7.37]
[1756901123551,7.56924438,211.09,211.02,7.37]
[1756901123755,4.06311329,211.08,211.02,7.37]
[1756901123948,1.71974506,211.08,211.02,7.37]
[1756901124152,1.71974506,211.06,211.02,7.37]
[1756901124354,1.71974506,211.06,210.98,1.71974506]
[1756901124556,1.71974506,211.06,210.99,7.37]
[1756901125261,1.71974506,211.08,211.01,7.37]
[1756901125456,7.38,211.11,211.03,7.37]
[1756901125457,4.01765658,211.07,211.03,7.37]
[1756901125760,1.71974506,211.1,211.03,7.37]
[1756901125949,7.51501952,211.09,211.03,7.37]
[1756901126154,7.51501952,211.08,211.03,7.37]
[1756901126351,4.01762823,211.07,211.02,1.71974506]
[1756901126553,9.09974506,211.11,211.03,7.37]
[1756901126760,7.52897827,211.1,211.03,7.37]
[1756901126956,7.52897827,211.09,211.03,7.37]
[1756901127162,7.52897827,211.08,211.02,1.71974506]
[1756901127359,4.01376704,211.07,211.02,1.71974506]
[1756901127553,9.09974506,211.11,211.03,7.37]
[1756901127758,7.52261174,211.1,211.03,7.37]
[1756901127962,7.52261174,211.09,211.03,7.37]
[1756901128159,7.52261174,211.08,211.03,7.37]
[1756901128462,4.01037895,211.07,211.02,1.71974506]
[1756901128658,9.09974506,211.11,211.03,7.37]
[1756901128859,7.51687339,211.1,211.03,7.37]
[1756901129062,1.71974506,211.14,211.06,9.08974506]
[1756901129365,7.51545699,211.13,211.06,9.08974506]
[1756901129567,7.51545699,211.12,211.06,9.08974506]
[1756901129759,7.38,211.15,211.06,9.08974506]
[1756901129760,4.00683376,211.11,211.07,7.37]
[1756901129965,9.09974506,211.15,211.08,1.71974506]
[1756901130267,7.51168496,211.14,211.08,1.71974506]
[1756901130559,4.00453692,211.13,211.08,9.08974506]
[1756901130754,4.00453692,211.12,211.08,1.71974506]
[1756901130953,4.00453692,211.11,211.08,1.71974506]
[1756901131155,7.38,211.15,211.11,7.37]
[1756901131367,1.71974506,211.18,211.1,9.08974506]
[1756901131660,3.50461066,211.17,211.12,1.71974506]
[1756901131859,7.38,211.19,211.12,1.71974506]
[1756901132061,3.50458092,211.18,211.14,9.08974506]
[1756901132260,3.50458092,211.17,211.14,9.08974506]
[1756901132465,7.38,211.19,211.14,9.08974506]
[1756901133666,7.38,211.19,211.14,7.37]
[1756901134659,5.31822148,211.29,211.13,1.71974506]
[1756901134864,5.31822148,211.29,203.82,119.67554497]
[1756901134865,14.6626404,211.28,211.2,1.71974506]
[1756901135064,7.38,211.24,211.18,1.71974506]
[1756901136966,1.71974506,211.27,211.2,1.71974506]
[1756901137167,7.28223827,211.26,211.2,1.71974506]
[1756901137466,7.38,211.28,211.21,13.34974506]
[1756901137769,7.28202509,211.27,211.21,13.34974506]
[1756901138069,7.38,211.25,211.21,9.08974506]
[1756901139467,7.38,211.25,211.21,7.37]
[1756901139962,7.38,211.25,211.21,11.63]
[1756901140170,7.38,211.3,211.17,10.05953206]
[1756901140469,10.06953206,211.28,211.19,4.2604]
[1756901140668,7.28328126,211.27,211.19,4.2604]
[1756901140869,7.28328126,211.26,211.19,4.2604]
[1756901141072,7.38,211.28,211.18,7.37]
[1756901141073,3.50314532,211.25,211.18,7.37]
[1756901141273,7.38,211.33,211.23,10.05953206]
[1756901141468,7.28347733,211.32,211.23,10.05953206]
[1756901141669,3.50345384,211.31,211.23,10.05953206]
[1756901141865,7.38,211.33,211.23,10.05953206]
[1756901142067,3.50314019,211.32,211.23,10.05953206]
[1756901142366,3.50314019,211.31,211.23,10.05953206]
[1756901142671,7.38,211.33,211.23,10.05953206]
[1756901142861,3.5034082,211.32,211.23,10.05953206]
[1756901143061,7.38,211.33,211.23,10.05953206]
[1756901143062,7.19,211.3,211.27,4.2586]
[1756901143472,2.68953206,211.34,211.24,4.2592]
[1756901143672,7.19,211.32,211.24,4.2592]
[1756901143872,3.50387394,211.31,211.24,4.2592]
[1756901144073,7.19,211.3,211.24,4.2592]
[1756901144265,7.19,211.28,211.24,4.2592]
[1756901145474,7.19,211.33,211.24,4.2592]
[1756901145672,7.20353799,211.32,211.24,4.2592]
[1756901145865,14.39353799,211.31,211.24,4.2592]
[1756901146072,3.50516111,211.3,211.26,7.73]
[1756901146268,3.50516111,211.29,211.26,7.73]
[1756901146472,7.19,211.31,211.26,7.73]
[1756901146776,10.6954748,211.3,211.26,7.73]
[1756901146976,3.5054748,211.29,211.26,11.9888]
[1756901147278,7.19,211.3,211.26,11.9888]
[1756901148072,2.68953206,211.37,211.27,66.2475]
[1756901148277,3.5054406,211.36,211.28,7.73]
[1756901148474,3.5054406,211.35,211.28,7.73]
[1756901148679,3.5054406,211.34,211.28,7.73]
[1756901148875,7.19,211.38,211.28,7.73]
[1756901149075,7.20366486,211.37,211.28,7.73]
[1756901149276,86.8276213,211.39,211.27,66.2475]
[1756901149277,10.69530042,211.36,211.32,11.9876]
[1756901149477,3.50530042,211.35,211.32,7.73]
[1756901149676,3.50530042,211.35,211.33,4.2574]
[1756901151880,3.50530042,211.35,211.32,7.73]
[1756901153581,3.50530042,211.35,211.32,11.9876]
[1756901154478,3.50530042,211.35,211.33,11.9874]
[1756901154682,7.19,211.39,211.33,11.9874]
[1756901154982,7.20527673,211.38,211.32,4.2576]
[1756901155183,7.19,211.36,211.32,11.9876]
[1756901155383,3.50615274,211.35,211.32,11.9876]
[1756901156181,3.50615274,211.35,211.34,7.73]
[1756901156884,7.19,211.42,211.36,4.2569]
[1756901157182,7.19,211.4,211.36,11.9869]
[1756901157386,7.20494897,211.39,211.36,11.9869]
[1756901157585,7.20494897,211.38,211.36,11.9869]
[1756901157882,3.50541873,211.37,211.36,11.9869]
[1756901159388,7.19,211.44,211.38,4.2564]
[1756901159583,14.39329602,211.43,211.38,11.9864]
[1756901159784,14.39329602,211.43,211.33,188.1686]
[1756901159785,3.5046592,211.42,211.39,7.73]
[1756901159992,3.5046592,211.41,211.35,129.57]
[1756901160191,3.5046592,211.4,211.35,7.73]
[1756901160387,7.19,211.43,211.37,7.73]
[1756901160592,3.50459554,211.42,211.37,7.73]
[1756901160784,3.50459554,211.41,211.37,7.73]
[1756901161093,3.50459554,211.4,211.36,121.8]
[1756901161289,7.19,211.43,211.37,7.73]
[1756901161489,3.50384584,211.42,211.36,121.78]
[1756901161690,3.50384584,211.41,211.34,66.2259]
[1756901161885,3.50384584,211.4,211.35,121.74]
[1756901162085,7.19,211.43,211.37,4.2567]
[1756901162290,7.20018012,211.42,211.36,7.73]
[1756901162492,2.68953206,211.45,211.34,104.96]
[1756901162493,14.39018012,211.41,211.34,104.96]
[1756901162693,3.50316633,211.4,211.38,4.2564]
[1756901163002,3.50316633,211.4,211.38,11.9864]
[1756901163588,3.50316633,211.4,211.38,4.2564]
[1756901163794,3.50316633,211.39,211.38,4.2564]
[1756901164983,3.50316633,211.39,211.36,4.2569]
[1756901165186,3.50316633,211.38,211.37,7.73]
[1756901166298,7.19,211.44,211.38,4.2565]
[1756901166493,7.19,211.42,211.38,4.2565]
[1756901166687,7.19,211.4,211.37,7.73]
[1756901166892,3.50254483,211.39,211.36,4.2569]
[1756901167093,3.50254483,211.38,211.36,11.9869]
[1756901167295,7.19,211.41,211.37,7.73]
[1756901167496,3.50324808,211.4,211.37,7.73]
[1756901167695,3.50324808,211.39,211.38,4.2566]
[1756901167997,10.69324808,211.39,211.38,4.2566]
[1756901169297,3.50324808,211.39,211.38,4.2566]
[1756901169684,3.50324808,211.39,211.36,4.2569]
[1756901169886,3.50324808,211.39,211.35,7.73]
[1756901169887,10.69324808,211.38,211.28,7.73]
[1756901170089,3.50324808,211.37,211.28,7.73]
[1756901170494,3.50324808,211.37,211.29,121.26]
[1756901170690,7.19,211.36,211.28,7.73]
[1756901170893,3.50324808,211.35,211.29,121.24]
[1756901171089,7.20696989,211.35,211.29,121.24]
[1756901171290,3.50324808,211.34,211.3,7.73]
[1756901171491,3.50324808,211.33,211.3,7.46]
[1756901171684,3.50324808,211.32,211.3,7.46]
[1756901171896,2.68953206,211.36,211.29,128.7]
[1756901172097,14.38794303,211.35,211.31,7.46]
[1756901172394,14.38794303,211.35,211.3,4.2581]
[1756901172395,7.22113993,211.34,211.3,7.46]
[1756901172699,3.51154424,211.33,211.29,121.24]
[1756901172998,3.51154424,211.32,211.29,121.24]
[1756901173299,5.31822148,211.4,211.3,7.46]
[1756901173494,3.71301476,211.39,211.3,7.46]
[1756901173695,3.71301476,211.38,211.3,7.46]
[1756901173894,3.71301476,211.37,211.3,7.46]
[1756901174096,3.71301476,211.36,211.3,7.46]
[1756901174294,5.31822148,211.41,211.34,7.46]
[1756901174495,12.48822148,211.42,211.35,121.1]
[1756901174796,12.48822148,211.42,211.34,7.46]
[1756901174991,12.48822148,211.42,211.35,121.08]
[1756901175497,7.17,211.42,211.35,121.08]
[1756901176797,12.48822148,211.42,211.35,125.337]
[1756901177101,7.17,211.42,211.35,125.337]
[1756901177302,12.48822148,211.42,211.35,125.337]
[1756901177503,12.48822148,211.42,211.36,4.2568]
[1756901178402,12.48822148,211.42,211.34,11.7173]
[1756901178798,5.31822148,211.41,211.35,101.88]
[1756901179202,5.31822148,211.41,211.35,106.1371]
[1756901179606,5.31822148,211.41,211.35,4.2571]
[1756901179800,5.31822148,211.41,211.32,2.68953206]
[1756901179801,12.48822148,211.39,211.31,7.46]
[1756901180005,5.31822148,211.38,211.31,109.14]
[1756901180302,5.31822148,211.38,211.32,7.46]
[1756901181103,5.31822148,211.39,211.32,7.46]
[1756901182204,5.31822148,211.4,211.33,7.46]
[1756901183008,5.31822148,211.4,211.37,7.46]
[1756901183502,12.48822148,211.4,211.37,7.46]
[1756901184608,5.31822148,211.41,211.37,7.46]
[1756901184904,5.31822148,211.41,211.35,7.46]
[1756901185114,5.31822148,211.42,211.36,7.46]
[1756901185402,7.17,211.47,211.38,7.46]
[1756901185403,3.39823012,211.41,211.38,7.46]
[1756901185608,3.39823012,211.4,211.38,120.58]
[1756901185906,3.39823012,211.39,211.37,128.04]
[1756901186106,7.17,211.43,211.37,128.04]
[1756901186107,3.39823012,211.38,211.37,128.04]
[1756901188004,3.39823012,211.38,211.37,7.46]
[1756901188806,3.39823012,211.38,211.37,100.54]
[1756901189210,3.39823012,211.38,211.37,7.46]
[1756901189504,3.39823012,211.38,211.35,7.46]
[1756901189703,3.39823012,211.37,211.35,127.92]
[1756901189906,3.39823012,211.36,211.35,127.9]
[1756901190304,3.39823012,211.36,211.35,7.46]
[1756901190614,3.39823012,211.36,211.35,127.86]
[1756901192917,3.39823012,211.36,211.35,7.46]
[1756901193318,3.39823012,211.36,211.35,127.72]
[1756901194016,3.32780571,211.36,211.35,127.72]
[1756901194817,3.32780571,211.36,211.35,7.46]
[1756901195017,3.32780571,211.36,211.35,127.62]
[1756901198714,3.32780571,211.36,211.35,7.46]
[1756901198921,3.32780571,211.36,211.35,127.42]
[1756901199522,3.32780571,211.36,211.35,127.4]
[1756901199721,3.32780571,211.36,211.35,7.46]
[1756901199921,3.32780571,211.36,211.35,127.38]
[1756901200522,3.32780571,211.36,211.35,127.36]
[1756901201422,3.32780571,211.36,211.35,9.17894515]
[1756901201623,3.32780571,211.36,211.35,129.01894515]
[1756901203518,7.3,211.42,211.35,129.01894515]
[1756901203825,3.31954648,211.41,211.38,1.71894515]
[1756901204019,3.31954648,211.4,211.39,131.9262]
[1756901204722,3.31954648,211.4,211.39,7.77]
[1756901204924,3.31954648,211.4,211.39,127.63]
[1756901205224,3.31954648,211.4,211.39,131.8864]
[1756901205414,7.3,211.44,211.39,7.77]
[1756901205613,10.618536,211.43,211.4,121.55894515]
[1756901205818,3.318536,211.42,211.41,7.77]
[1756901206018,7.3,211.49,211.42,1.71894515]
[1756901206217,3.31824853,211.48,211.44,1.71894515]
[1756901206513,7.3,211.46,211.44,39.62]
[1756901206716,3.31824853,211.45,211.44,39.62]
[1756901207023,3.31824853,211.45,211.42,9.48894515]
[1756901207219,3.31824853,211.44,211.37,1.71894515]
[1756901207421,10.61824853,211.43,211.39,9.48894515]
[1756901207622,3.31824853,211.42,211.4,7.77]
[1756901207918,3.31824853,211.41,211.4,7.77]
[1756901208522,3.31824853,211.41,211.39,121.61894515]
[1756901208718,3.31824853,211.41,211.38,4.2564]
[1756901208719,3.31824853,211.4,211.29,66.2405]
[1756901208921,3.31824853,211.39,211.37,9.48894515]
[1756901209221,7.3,211.42,211.38,127.65]
[1756901209422,3.3153694,211.41,211.38,127.65]
[1756901209621,3.3153694,211.4,211.38,127.65]
[1756901209816,3.3153694,211.39,211.38,127.65]
[1756901210021,3.3153694,211.39,211.38,7.77]
[1756901210320,3.3153694,211.39,211.29,66.2405]
[1756901210525,7.3,211.37,211.33,12.0274]
[1756901210819,3.3153694,211.36,211.29,1.71894515]
[1756901211015,3.3153694,211.35,211.3,84.2]
[1756901211221,7.3,211.37,211.31,9.48894515]
[1756901211222,3.3153694,211.34,211.31,9.48894515]
[1756901211415,7.3,211.37,211.31,1.71894515]
[1756901211621,3.31545703,211.36,211.32,12.0276]
[1756901211824,7.3,211.37,211.32,12.0276]
[1756901212022,3.31501276,211.36,211.32,12.0276]
[1756901212322,7.3,211.37,211.32,12.0276]